[Event "*** Titled Tuesday Blitz"]
[Site "Chess.com"]
[Date "2020.10.27"]
[Round "3"]
[White "emiliochess"]
[Black "Fischerev7"]
[Result "1-0"]
[WhiteElo "2248"]
[BlackElo "2411"]
[TimeControl "180+1"]
[EndTime "10:29:57 PDT"]
[Termination "emiliochess won by resignation"]

1. d4 {[%clk 0:02:59.8]} 1... Nf6 {[%clk 0:02:58.9]} 2. Bf4 {[%clk 0:02:59.7]}
2... e6 {[%clk 0:02:58.1]} 3. e3 {[%clk 0:02:59.9]} 3... d5 {[%clk 0:02:58]} 4.
Bd3 {[%clk 0:02:59.4]} 4... Bd6 {[%clk 0:02:58.4]} 5. Bg3 {[%clk 0:02:59.7]}
5... O-O {[%clk 0:02:58.1]} 6. Nf3 {[%clk 0:02:59.7]} 6... c5 {[%clk 0:02:58.8]}
7. c3 {[%clk 0:02:59.6]} 7... Nc6 {[%clk 0:02:58.9]} 8. Nbd2 {[%clk 0:02:59.8]}
8... b6 {[%clk 0:02:59.5]} 9. Ne5 {[%clk 0:02:59.9]} 9... Bb7 {[%clk 0:02:59.5]}
10. f4 {[%clk 0:02:58.8]} 10... Qe7 {[%clk 0:02:59.2]} 11. Qf3 {[%clk
0:02:57.4]} 11... Nd7 {[%clk 0:02:59.4]} 12. Nxd7 {[%clk 0:02:40.6]} 12... Qxd7
{[%clk 0:02:58.9]} 13. O-O {[%clk 0:02:37.5]} 13... Rae8 {[%clk 0:02:51.7]} 14.
Rae1 {[%clk 0:02:34.8]} 14... Ne7 {[%clk 0:02:42.9]} 15. Bh4 {[%clk 0:02:31]}
15... Nf5 {[%clk 0:02:41.4]} 16. Bf2 {[%clk 0:02:27.9]} 16... Be7 {[%clk
0:02:40.5]} 17. g4 {[%clk 0:02:27.4]} 17... Nd6 {[%clk 0:02:40.4]} 18. h4 {[%clk
0:02:23.9]} 18... f5 {[%clk 0:02:38.1]} 19. Kh1 {[%clk 0:02:16.4]} 19... Ne4
{[%clk 0:02:37]} 20. Re2 {[%clk 0:02:05.4]} 20... cxd4 {[%clk 0:02:30.9]} 21.
exd4 {[%clk 0:02:04.3]} 21... Qd8 {[%clk 0:02:26.7]} 22. h5 {[%clk 0:01:40]}
22... Bd6 {[%clk 0:02:15.5]} 23. Rg1 {[%clk 0:01:38.2]} 23... Kh8 {[%clk
0:02:01.2]} 24. Be1 {[%clk 0:01:33.7]} 24... Rf7 {[%clk 0:01:53.5]} 25. Reg2
{[%clk 0:01:28.8]} 25... Qc7 {[%clk 0:01:46.2]} 26. g5 {[%clk 0:01:21.3]} 26...
Rff8 {[%clk 0:01:46.2]} 27. Rf1 {[%clk 0:01:14.6]} 27... a6 {[%clk 0:01:45.7]}
28. Qe3 {[%clk 0:01:03]} 28... b5 {[%clk 0:01:42.6]} 29. Nf3 {[%clk 0:01:01.5]}
29... Bxf4 {[%clk 0:01:41.8]} 30. Qe2 {[%clk 0:01:01.4]} 30... Bd6 {[%clk
0:01:37.2]} 31. a3 {[%clk 0:00:57.4]} 31... Bc6 {[%clk 0:01:34.9]} 32. Nh4
{[%clk 0:00:57.1]} 32... Bg3 {[%clk 0:01:17.3]} 33. Ng6+ {[%clk 0:00:50.4]}
33... Kg8 {[%clk 0:01:01.7]} 34. Nxf8 {[%clk 0:00:49.7]} 34... Rxf8 {[%clk
0:01:00.6]} 35. Bxe4 {[%clk 0:00:36.2]} 35... Bxe1 {[%clk 0:01:00.1]} 36. Bd3
{[%clk 0:00:24.4]} 36... Bg3 {[%clk 0:01:00.1]} 37. Qxe6+ {[%clk 0:00:21.3]}
37... Kh8 {[%clk 0:00:50.9]} 38. Rxf5 {[%clk 0:00:15]} 38... Re8 {[%clk
0:00:45.6]} 39. h6 {[%clk 0:00:14.9]} 39... Qd7 {[%clk 0:00:15.4]} 40. Qxd7
{[%clk 0:00:10.9]} 40... Bxd7 {[%clk 0:00:16.3]} 41. Rxg3 {[%clk 0:00:09.8]}
41... Bxf5 {[%clk 0:00:14.4]} 42. Bxf5 {[%clk 0:00:10.7]} 42... Re1+ {[%clk
0:00:12.6]} 43. Kh2 {[%clk 0:00:09.5]} 43... Re2+ {[%clk 0:00:10.8]} 44. Rg2
{[%clk 0:00:10]} 44... Re1 {[%clk 0:00:10.3]} 45. hxg7+ {[%clk 0:00:10.3]} 45...
Kxg7 {[%clk 0:00:10.6]} 46. g6 {[%clk 0:00:10.7]} 46... hxg6 {[%clk 0:00:07.6]}
47. Bxg6 {[%clk 0:00:10.7]} 47... Kf6 {[%clk 0:00:07]} 48. Bh5 {[%clk
0:00:10.5]} 48... Re3 {[%clk 0:00:06.1]} 49. Bg4 {[%clk 0:00:10.8]} 49... a5
{[%clk 0:00:05.7]} 50. Bd7 {[%clk 0:00:10.7]} 50... b4 {[%clk 0:00:05.3]} 51.
axb4 {[%clk 0:00:11.6]} 51... axb4 {[%clk 0:00:06.2]} 52. cxb4 {[%clk
0:00:12.5]} 52... Rb3 {[%clk 0:00:06.2]} 53. Bc6 {[%clk 0:00:13]} 53... Rxb4
{[%clk 0:00:05.4]} 54. Bxd5 {[%clk 0:00:13.3]} 54... Rxd4 {[%clk 0:00:06]} 55.
Bg8 {[%clk 0:00:13.5]} 55... Ke5 {[%clk 0:00:06.3]} 56. b3 {[%clk 0:00:13.9]}
56... Kd6 {[%clk 0:00:06.8]} 57. Bc4 {[%clk 0:00:14.4]} 57... Kc5 {[%clk
0:00:07]} 58. Kg3 {[%clk 0:00:14.9]} 58... Rd6 {[%clk 0:00:05.7]} 59. Kf3 {[%clk
0:00:15.3]} 59... Kb4 {[%clk 0:00:05.5]} 60. Ke3 {[%clk 0:00:15.6]} 60... Rd7
{[%clk 0:00:05.8]} 61. Rg4 {[%clk 0:00:15.6]} 61... Rd6 {[%clk 0:00:04.8]} 62.
Re4 {[%clk 0:00:15.6]} 62... Rd8 {[%clk 0:00:04.8]} 63. Re6 {[%clk 0:00:16]}
63... Kc5 {[%clk 0:00:04.5]} 64. Re5+ {[%clk 0:00:15.7]} 64... Kc6 {[%clk
0:00:03.4]} 65. Re4 {[%clk 0:00:15.5]} 65... Kc5 {[%clk 0:00:03.3]} 66. Re5+
{[%clk 0:00:15.8]} 66... Kc6 {[%clk 0:00:03.3]} 67. Re7 {[%clk 0:00:15.8]} 67...
Kb6 {[%clk 0:00:02.6]} 68. Ke2 {[%clk 0:00:15]} 68... Kc5 {[%clk 0:00:02.5]} 69.
Re3 {[%clk 0:00:15.2]} 69... Kb4 {[%clk 0:00:03]} 70. Rd3 {[%clk 0:00:15.7]}
70... Kc5 {[%clk 0:00:03.6]} 71. Kd2 {[%clk 0:00:16.3]} 71... Rb8 {[%clk
0:00:02.9]} 72. Kc3 {[%clk 0:00:16.6]} 72... Rf8 {[%clk 0:00:03.5]} 73. Rd5+
{[%clk 0:00:16.9]} 73... Kb6 {[%clk 0:00:04.4]} 74. b4 {[%clk 0:00:17.4]} 74...
Kc6 {[%clk 0:00:05]} 75. Rd3 {[%clk 0:00:17.1]} 75... Rf4 {[%clk 0:00:05.1]} 76.
Kb3 {[%clk 0:00:17.2]} 76... Kb6 {[%clk 0:00:05.6]} 77. Rd6+ {[%clk 0:00:16.9]}
77... Kc7 {[%clk 0:00:05.4]} 78. Re6 {[%clk 0:00:17.8]} 78... Kd7 {[%clk
0:00:05.3]} 79. b5 {[%clk 0:00:18.1]} 79... Rxc4 {[%clk 0:00:04.8]} 80. Kxc4
{[%clk 0:00:19]} 80... Kxe6 {[%clk 0:00:05.7]} 81. Kc5 {[%clk 0:00:19.6]} 81...
Kd7 {[%clk 0:00:06.6]} 82. Kb6 {[%clk 0:00:20.1]} 82... Kc8 {[%clk 0:00:07.5]}
83. Ka7 {[%clk 0:00:20.7]} 83... Kc7 {[%clk 0:00:07.2]} 84. b6+ {[%clk
0:00:21.6]} 84... Kd7 {[%clk 0:00:06.7]} 85. b7 {[%clk 0:00:22.5]} 1-0

[Event "*** Titled Tuesday Blitz"]
[Site "Chess.com"]
[Date "2020.10.27"]
[Round "3"]
[White "TokChess"]
[Black "Sammed_Shete"]
[Result "1-0"]
[WhiteElo "2433"]
[BlackElo "2634"]
[TimeControl "180+1"]
[EndTime "10:29:59 PDT"]
[Termination "TokChess won on time"]

1. Nf3 {[%clk 0:03:00.9]} 1... Nf6 {[%clk 0:02:56.1]} 2. c4 {[%clk 0:03:00.9]}
2... e6 {[%clk 0:02:53.3]} 3. e3 {[%clk 0:03:01.3]} 3... d5 {[%clk 0:02:52.2]}
4. b3 {[%clk 0:03:01.6]} 4... a5 {[%clk 0:02:49.4]} 5. a3 {[%clk 0:03:01.4]}
5... a4 {[%clk 0:02:47.8]} 6. b4 {[%clk 0:03:01.2]} 6... c5 {[%clk 0:02:46.7]}
7. bxc5 {[%clk 0:02:58.7]} 7... Bxc5 {[%clk 0:02:46.1]} 8. d4 {[%clk 0:02:55.9]}
8... Be7 {[%clk 0:02:44.3]} 9. Nbd2 {[%clk 0:02:49.5]} 9... O-O {[%clk
0:02:41.3]} 10. Be2 {[%clk 0:02:48.9]} 10... Nc6 {[%clk 0:02:40.8]} 11. O-O
{[%clk 0:02:48.8]} 11... Bd6 {[%clk 0:02:30.8]} 12. Bb2 {[%clk 0:02:44.9]} 12...
Ne4 {[%clk 0:02:16.7]} 13. Nxe4 {[%clk 0:02:24.3]} 13... dxe4 {[%clk 0:02:17.6]}
14. Ne5 {[%clk 0:02:24.1]} 14... Nxe5 {[%clk 0:02:14.8]} 15. dxe5 {[%clk
0:02:23.9]} 15... Bc5 {[%clk 0:02:07.9]} 16. Qc2 {[%clk 0:02:23.9]} 16... Qd7
{[%clk 0:02:00.3]} 17. Qxe4 {[%clk 0:02:11]} 17... Qd2 {[%clk 0:01:58.7]} 18.
Bd4 {[%clk 0:02:10.9]} 18... Be7 {[%clk 0:01:42.4]} 19. Bd3 {[%clk 0:02:05]}
19... g6 {[%clk 0:01:42]} 20. Rfd1 {[%clk 0:02:04.8]} 20... Qa5 {[%clk
0:01:42.1]} 21. Rdb1 {[%clk 0:01:42.8]} 21... Qc7 {[%clk 0:01:34.3]} 22. Bb6
{[%clk 0:01:24.7]} 22... Qd7 {[%clk 0:01:29.6]} 23. c5 {[%clk 0:01:21.1]} 23...
Qe8 {[%clk 0:01:23.1]} 24. Rd1 {[%clk 0:01:12.3]} 24... Bd7 {[%clk 0:01:23.1]}
25. Be2 {[%clk 0:00:54.8]} 25... Bc6 {[%clk 0:01:23.3]} 26. Qf4 {[%clk
0:00:53.9]} 26... Qc8 {[%clk 0:01:22.7]} 27. Rac1 {[%clk 0:00:50.8]} 27... Re8
{[%clk 0:01:18.2]} 28. h4 {[%clk 0:00:50.2]} 28... Bf8 {[%clk 0:01:17.4]} 29. h5
{[%clk 0:00:49.8]} 29... Bg7 {[%clk 0:01:17.7]} 30. h6 {[%clk 0:00:49]} 30...
Bh8 {[%clk 0:01:18]} 31. Rd6 {[%clk 0:00:45.3]} 31... Ra6 {[%clk 0:01:14.4]} 32.
Rcd1 {[%clk 0:00:44.8]} 32... Ra8 {[%clk 0:01:14.1]} 33. Qd4 {[%clk 0:00:44.1]}
33... Qb8 {[%clk 0:01:11.8]} 34. f4 {[%clk 0:00:41]} 34... f6 {[%clk 0:01:11.7]}
35. exf6 {[%clk 0:00:38.7]} 35... Kf7 {[%clk 0:01:11.5]} 36. Rd7+ {[%clk
0:00:34.6]} 36... Bxd7 {[%clk 0:01:11.8]} 37. Qxd7+ {[%clk 0:00:34.6]} 37...
Kxf6 {[%clk 0:01:12.7]} 38. Bc7 {[%clk 0:00:35.1]} 38... Re7 {[%clk 0:01:00.3]}
39. Qd4+ {[%clk 0:00:21.3]} 39... Kf7 {[%clk 0:00:57.5]} 40. Bxb8 {[%clk
0:00:13.1]} 40... Bxd4 {[%clk 0:00:57.4]} 41. Rxd4 {[%clk 0:00:11.4]} 41... Rxb8
{[%clk 0:00:57.9]} 42. Rxa4 {[%clk 0:00:11.6]} 42... Rc8 {[%clk 0:00:57.5]} 43.
Ra5 {[%clk 0:00:10.5]} 43... Rec7 {[%clk 0:00:57]} 44. Rb5 {[%clk 0:00:10.8]}
44... Rd8 {[%clk 0:00:57.6]} 45. Kf2 {[%clk 0:00:10.2]} 45... Rd2 {[%clk
0:00:57.4]} 46. Kf3 {[%clk 0:00:08.9]} 46... Rc2 {[%clk 0:00:56.7]} 47. Bd3
{[%clk 0:00:08.7]} 47... R2xc5 {[%clk 0:00:56.8]} 48. Rb4 {[%clk 0:00:09.3]}
48... Rc3 {[%clk 0:00:48.3]} 49. Be4 {[%clk 0:00:07.8]} 49... Rxa3 {[%clk
0:00:48.9]} 50. Rxb7 {[%clk 0:00:07.1]} 50... Rxb7 {[%clk 0:00:48.3]} 51. Bxb7
{[%clk 0:00:07.6]} 51... Kf6 {[%clk 0:00:45.4]} 52. g4 {[%clk 0:00:07.9]} 52...
g5 {[%clk 0:00:45.6]} 53. Be4 {[%clk 0:00:06.1]} 53... Ra7 {[%clk 0:00:45.5]}
54. Kg3 {[%clk 0:00:04.8]} 54... Ra3 {[%clk 0:00:43.1]} 55. Kf3 {[%clk 0:00:05]}
55... gxf4 {[%clk 0:00:43.5]} 56. Kxf4 {[%clk 0:00:05.5]} 56... e5+ {[%clk
0:00:44]} 57. Kf3 {[%clk 0:00:05.9]} 57... Kg5 {[%clk 0:00:42.9]} 58. Bxh7
{[%clk 0:00:05.7]} 58... Kxh6 {[%clk 0:00:43.8]} 59. Bf5 {[%clk 0:00:06.1]}
59... Kg5 {[%clk 0:00:43.5]} 60. Ke4 {[%clk 0:00:06.7]} 60... Ra5 {[%clk
0:00:43.5]} 61. Be6 {[%clk 0:00:06.5]} 61... Kf6 {[%clk 0:00:44.1]} 62. Bf5
{[%clk 0:00:06.7]} 62... Ra4+ {[%clk 0:00:42.8]} 63. Kf3 {[%clk 0:00:06.6]}
63... Kg5 {[%clk 0:00:42.2]} 64. Be4 {[%clk 0:00:06.7]} 64... Rb4 {[%clk
0:00:39.3]} 65. Bf5 {[%clk 0:00:07.1]} 65... Kh4 {[%clk 0:00:39]} 66. Be4 {[%clk
0:00:06.7]} 66... Kg5 {[%clk 0:00:36.1]} 67. Bf5 {[%clk 0:00:07]} 67... Kf6
{[%clk 0:00:36.5]} 68. Be4 {[%clk 0:00:07.4]} 68... Ke6 {[%clk 0:00:32.9]} 69.
Bf5+ {[%clk 0:00:07.3]} 69... Kd5 {[%clk 0:00:33.6]} 70. Bg6 {[%clk 0:00:07.1]}
70... Rb8 {[%clk 0:00:32.4]} 71. Bf5 {[%clk 0:00:07]} 71... Rf8 {[%clk 0:00:33]}
72. Kg3 {[%clk 0:00:07.2]} 72... Rf7 {[%clk 0:00:32.1]} 73. e4+ {[%clk
0:00:07.3]} 73... Kd4 {[%clk 0:00:31.6]} 74. g5 {[%clk 0:00:07.8]} 74... Ke3
{[%clk 0:00:31.8]} 75. g6 {[%clk 0:00:07.8]} 75... Ra7 {[%clk 0:00:12.1]} 76.
Kg4 {[%clk 0:00:08]} 1-0

[Event "*** Titled Tuesday Blitz"]
[Site "Chess.com"]
[Date "2020.10.27"]
[Round "3"]
[White "Kurai"]
[Black "mapleaff"]
[Result "0-1"]
[WhiteElo "2570"]
[BlackElo "2392"]
[TimeControl "180+1"]
[EndTime "10:30:04 PDT"]
[Termination "mapleaff won by resignation"]

1. d4 {[%clk 0:02:05]} 1... Nf6 {[%clk 0:02:59.3]} 2. c4 {[%clk 0:02:05.2]} 2...
e6 {[%clk 0:02:58.1]} 3. Nc3 {[%clk 0:02:05.6]} 3... Bb4 {[%clk 0:02:56.7]} 4.
e3 {[%clk 0:02:06.1]} 4... O-O {[%clk 0:02:55.4]} 5. Bd3 {[%clk 0:02:06.5]} 5...
d5 {[%clk 0:02:55.3]} 6. Nf3 {[%clk 0:02:07]} 6... c5 {[%clk 0:02:54.4]} 7. O-O
{[%clk 0:02:07.1]} 7... cxd4 {[%clk 0:02:52]} 8. exd4 {[%clk 0:02:08]} 8... dxc4
{[%clk 0:02:52.6]} 9. Bxc4 {[%clk 0:02:08.9]} 9... b6 {[%clk 0:02:52.9]} 10. Qb3
{[%clk 0:02:08.9]} 10... Bxc3 {[%clk 0:02:50.4]} 11. bxc3 {[%clk 0:02:09.8]}
11... Bb7 {[%clk 0:02:49.4]} 12. Ba3 {[%clk 0:02:10.4]} 12... Re8 {[%clk
0:02:48.7]} 13. Bb5 {[%clk 0:02:11]} 13... Bc6 {[%clk 0:02:45.8]} 14. Be2 {[%clk
0:02:11.3]} 14... Nbd7 {[%clk 0:02:41.3]} 15. Rfe1 {[%clk 0:02:11.7]} 15... h6
{[%clk 0:02:35.2]} 16. c4 {[%clk 0:02:11.7]} 16... Qc8 {[%clk 0:02:29.3]} 17.
Bb2 {[%clk 0:02:11.1]} 17... Qb7 {[%clk 0:02:27.3]} 18. Rad1 {[%clk 0:02:08.2]}
18... Rad8 {[%clk 0:02:17.1]} 19. a4 {[%clk 0:02:07.6]} 19... Qc7 {[%clk
0:02:11.1]} 20. h3 {[%clk 0:01:39.8]} 20... Nf8 {[%clk 0:02:00.9]} 21. Ne5
{[%clk 0:01:37.9]} 21... Bb7 {[%clk 0:01:57.9]} 22. Bd3 {[%clk 0:01:28.4]} 22...
N8d7 {[%clk 0:01:54.6]} 23. Bb1 {[%clk 0:01:20.2]} 23... Nxe5 {[%clk 0:01:50.3]}
24. Rxe5 {[%clk 0:01:20.8]} 24... Qc6 {[%clk 0:01:40.9]} 25. d5 {[%clk
0:01:04.9]} 25... exd5 {[%clk 0:01:38.5]} 26. cxd5 {[%clk 0:01:05]} 26... Qd6
{[%clk 0:01:30]} 27. Rxe8+ {[%clk 0:00:48.4]} 27... Rxe8 {[%clk 0:01:28.7]} 28.
Ba3 {[%clk 0:00:48.9]} 28... Bxd5 {[%clk 0:01:22.3]} 29. Qd3 {[%clk 0:00:27.8]}
29... Qc6 {[%clk 0:01:13.9]} 30. Qg3 {[%clk 0:00:25.8]} 30... Be4 {[%clk
0:01:04.7]} 31. Ba2 {[%clk 0:00:20.6]} 31... Qxa4 {[%clk 0:00:55.7]} 32. Rd6
{[%clk 0:00:14.2]} 32... Nh5 {[%clk 0:00:19.2]} 33. Qc3 {[%clk 0:00:13.3]} 33...
Nf4 {[%clk 0:00:12]} 34. Bb3 {[%clk 0:00:13.3]} 34... Ne2+ {[%clk 0:00:11.9]}
35. Kh2 {[%clk 0:00:12.7]} 35... Nxc3 {[%clk 0:00:11.5]} 36. Bxa4 {[%clk
0:00:13.1]} 36... Nxa4 {[%clk 0:00:12]} 37. Rd4 {[%clk 0:00:13.2]} 37... Bc6
{[%clk 0:00:11.8]} 38. Rc4 {[%clk 0:00:13.3]} 38... Bb5 {[%clk 0:00:11.2]} 39.
Rc7 {[%clk 0:00:13.9]} 39... a6 {[%clk 0:00:11.3]} 40. Bc1 {[%clk 0:00:13.6]}
40... Re2 {[%clk 0:00:08.8]} 41. Be3 {[%clk 0:00:13.7]} 41... Nc5 {[%clk
0:00:07.6]} 42. Rc8+ {[%clk 0:00:13]} 42... Kh7 {[%clk 0:00:07.7]} 43. Rb8
{[%clk 0:00:13.9]} 43... Nd7 {[%clk 0:00:07.6]} 44. Rb7 {[%clk 0:00:14]} 44...
a5 {[%clk 0:00:07.2]} 45. Ra7 {[%clk 0:00:14.3]} 45... a4 {[%clk 0:00:06.9]} 46.
Kg3 {[%clk 0:00:14.8]} 46... Ra2 {[%clk 0:00:06.5]} 47. Kf3 {[%clk 0:00:15.1]}
47... Kg6 {[%clk 0:00:06.6]} 48. Ke4 {[%clk 0:00:15.5]} 48... Bc6+ {[%clk
0:00:06.8]} 49. Kd4 {[%clk 0:00:15]} 49... Bxg2 {[%clk 0:00:07.2]} 50. Rxd7
{[%clk 0:00:14.4]} 50... Bxh3 {[%clk 0:00:07.7]} 51. Rd6+ {[%clk 0:00:14.9]}
51... Be6 {[%clk 0:00:08.2]} 52. Rxb6 {[%clk 0:00:15.5]} 52... a3 {[%clk
0:00:08.7]} 53. Ra6 {[%clk 0:00:15.9]} 53... Ra1 {[%clk 0:00:08.8]} 54. Ke5
{[%clk 0:00:09.9]} 54... a2 {[%clk 0:00:08.2]} 55. f4 {[%clk 0:00:10.5]} 55...
Rf1 {[%clk 0:00:08.1]} 56. f5+ {[%clk 0:00:11]} 56... Rxf5+ {[%clk 0:00:08.3]}
57. Ke4 {[%clk 0:00:11.7]} 57... Rf1 {[%clk 0:00:08.5]} 58. Bd4 {[%clk 0:00:12]}
58... Kg5 {[%clk 0:00:03.7]} 59. Ke3 {[%clk 0:00:11.7]} 59... Kg6 {[%clk
0:00:03.4]} 60. Ke2 {[%clk 0:00:12]} 60... Rb1 {[%clk 0:00:03.6]} 61. Kd2 {[%clk
0:00:12.2]} 61... Rb8 {[%clk 0:00:02]} 62. Ke3 {[%clk 0:00:12.5]} 62... Rc8
{[%clk 0:00:02.9]} 63. Ra7 {[%clk 0:00:12.5]} 63... Rc4 {[%clk 0:00:03.1]} 64.
Kd3 {[%clk 0:00:11]} 64... Rc1 {[%clk 0:00:03.6]} 65. Ra6 {[%clk 0:00:11]} 65...
Rb1 {[%clk 0:00:03.9]} 66. Kc2 {[%clk 0:00:10.7]} 66... Kf5 {[%clk 0:00:03.4]}
67. Kd3 {[%clk 0:00:09]} 67... Kf4 {[%clk 0:00:03.4]} 68. Be3+ {[%clk
0:00:08.8]} 68... Kf3 {[%clk 0:00:03.4]} 69. Bd4 {[%clk 0:00:09.7]} 69... g5
{[%clk 0:00:02.4]} 70. Bg7 {[%clk 0:00:08.3]} 70... g4 {[%clk 0:00:02.5]} 71.
Ra3 {[%clk 0:00:08.7]} 71... g3 {[%clk 0:00:03.4]} 72. Kd4+ {[%clk 0:00:08.7]}
72... Kg4 {[%clk 0:00:03.7]} 73. Be5 {[%clk 0:00:08.4]} 73... g2 {[%clk
0:00:04.1]} 74. Rg3+ {[%clk 0:00:08.5]} 74... Kh4 {[%clk 0:00:03.6]} 75. Ra3
{[%clk 0:00:05]} 75... a1=Q+ {[%clk 0:00:04.5]} 76. Rxa1 {[%clk 0:00:04.7]}
76... Rxa1 {[%clk 0:00:05.4]} 77. Ke3 {[%clk 0:00:05.6]} 77... g1=Q+ {[%clk
0:00:05.7]} 78. Kf3 {[%clk 0:00:06.3]} 78... Rf1+ {[%clk 0:00:05.7]} 79. Ke4
{[%clk 0:00:07]} 79... Qg4+ {[%clk 0:00:06.5]} 80. Kd3 {[%clk 0:00:06.9]} 80...
Rd1+ {[%clk 0:00:07.4]} 81. Kc2 {[%clk 0:00:07.1]} 81... Qe2+ {[%clk 0:00:08.1]}
0-1

[Event "*** Titled Tuesday Blitz"]
[Site "Chess.com"]
[Date "2020.10.27"]
[Round "3"]
[White "AldokhinIvan"]
[Black "GMKrikor"]
[Result "0-1"]
[WhiteElo "2582"]
[BlackElo "2788"]
[TimeControl "180+1"]
[EndTime "10:30:08 PDT"]
[Termination "GMKrikor won by resignation"]

1. e4 {[%clk 0:02:58.8]} 1... c5 {[%clk 0:02:59.3]} 2. Nf3 {[%clk 0:02:58.9]}
2... d6 {[%clk 0:02:58.5]} 3. d4 {[%clk 0:02:59.5]} 3... cxd4 {[%clk 0:02:59.4]}
4. Nxd4 {[%clk 0:03:00.4]} 4... Nf6 {[%clk 0:02:59.5]} 5. Nc3 {[%clk 0:03:00.9]}
5... a6 {[%clk 0:02:58.9]} 6. Bc4 {[%clk 0:03:00.8]} 6... e6 {[%clk 0:02:49.7]}
7. Bb3 {[%clk 0:03:00.3]} 7... Nbd7 {[%clk 0:02:49.8]} 8. O-O {[%clk 0:02:47.6]}
8... Nc5 {[%clk 0:02:49.3]} 9. Qf3 {[%clk 0:02:47.1]} 9... Be7 {[%clk
0:02:40.6]} 10. Qg3 {[%clk 0:02:47]} 10... O-O {[%clk 0:02:35.9]} 11. Bh6 {[%clk
0:02:43.6]} 11... Ne8 {[%clk 0:02:23.1]} 12. Rad1 {[%clk 0:02:29.7]} 12... Kh8
{[%clk 0:02:13.6]} 13. Be3 {[%clk 0:02:24.9]} 13... Qc7 {[%clk 0:02:08.9]} 14.
f4 {[%clk 0:01:59]} 14... b5 {[%clk 0:02:04.8]} 15. e5 {[%clk 0:01:52.7]} 15...
Bb7 {[%clk 0:02:02]} 16. a3 {[%clk 0:01:41.5]} 16... Nxb3 {[%clk 0:01:52.5]} 17.
cxb3 {[%clk 0:01:30.5]} 17... Rd8 {[%clk 0:01:38.3]} 18. Rc1 {[%clk 0:01:12.9]}
18... Qb8 {[%clk 0:01:31.1]} 19. Nf3 {[%clk 0:01:11.8]} 19... dxe5 {[%clk
0:01:18]} 20. fxe5 {[%clk 0:01:07]} 20... Rd3 {[%clk 0:01:13.2]} 21. Ng5 {[%clk
0:00:57.3]} 21... Bxg5 {[%clk 0:01:07.5]} 22. Qxg5 {[%clk 0:00:56.9]} 22... f6
{[%clk 0:00:51.6]} 23. Qf4 {[%clk 0:00:40.8]} 23... Qa8 {[%clk 0:00:48.5]} 24.
Rf2 {[%clk 0:00:36.2]} 24... f5 {[%clk 0:00:35.4]} 25. Bc5 {[%clk 0:00:35.3]}
25... Rf7 {[%clk 0:00:30.6]} 26. Rd1 {[%clk 0:00:34.8]} 26... Rfd7 {[%clk
0:00:28.8]} 27. Rxd3 {[%clk 0:00:34.7]} 27... Rxd3 {[%clk 0:00:29.7]} 28. Rd2
{[%clk 0:00:34.8]} 28... Qd8 {[%clk 0:00:29]} 29. Rxd3 {[%clk 0:00:31.1]} 29...
Qxd3 {[%clk 0:00:29.9]} 30. Qf2 {[%clk 0:00:18.1]} 30... h6 {[%clk 0:00:11.3]}
31. Bb4 {[%clk 0:00:17.7]} 31... Kh7 {[%clk 0:00:04.8]} 32. h3 {[%clk
0:00:16.4]} 32... Qd7 {[%clk 0:00:05.3]} 33. Qc5 {[%clk 0:00:15.6]} 33... Nc7
{[%clk 0:00:04.3]} 34. Qd6 {[%clk 0:00:15.7]} 34... Qc6 {[%clk 0:00:02.7]} 35.
Qxc6 {[%clk 0:00:15.3]} 35... Bxc6 {[%clk 0:00:03.6]} 36. Bd6 {[%clk 0:00:15.8]}
36... Ne8 {[%clk 0:00:04]} 37. Ne2 {[%clk 0:00:15.3]} 37... Kg6 {[%clk
0:00:03.9]} 38. Nd4 {[%clk 0:00:15.5]} 38... Bd7 {[%clk 0:00:04.6]} 39. Bc5
{[%clk 0:00:15.3]} 39... Kf7 {[%clk 0:00:04.3]} 40. Kf2 {[%clk 0:00:15]} 40...
g5 {[%clk 0:00:04.9]} 41. Bb6 {[%clk 0:00:15.2]} 41... f4 {[%clk 0:00:03.9]} 42.
b4 {[%clk 0:00:14.2]} 42... Bc8 {[%clk 0:00:04.1]} 43. Nb3 {[%clk 0:00:13.6]}
43... Ng7 {[%clk 0:00:04.3]} 44. Nc5 {[%clk 0:00:13.6]} 44... Nf5 {[%clk
0:00:05]} 45. Ne4 {[%clk 0:00:13.4]} 45... Bb7 {[%clk 0:00:03.9]} 46. Nf6 {[%clk
0:00:13.4]} 46... Bc6 {[%clk 0:00:03]} 47. Ng4 {[%clk 0:00:12.3]} 47... Kg6
{[%clk 0:00:02.4]} 48. Nf6 {[%clk 0:00:10.4]} 48... h5 {[%clk 0:00:03]} 49. Bc5
{[%clk 0:00:09.4]} 49... Ng7 {[%clk 0:00:03.2]} 50. Ng8 {[%clk 0:00:08.5]} 50...
Nf5 {[%clk 0:00:02.2]} 51. Ne7+ {[%clk 0:00:07.4]} 51... Nxe7 {[%clk 0:00:01.8]}
52. Bxe7 {[%clk 0:00:08.3]} 52... Kf5 {[%clk 0:00:02.7]} 53. Bf6 {[%clk
0:00:08.3]} 53... g4 {[%clk 0:00:03.2]} 54. hxg4+ {[%clk 0:00:07.9]} 54... hxg4
{[%clk 0:00:04.1]} 55. Bg7 {[%clk 0:00:08.2]} 55... g3+ {[%clk 0:00:04.3]} 56.
Kf1 {[%clk 0:00:07.8]} 56... Ke4 {[%clk 0:00:04.9]} 57. Kg1 {[%clk 0:00:07.7]}
57... Bd5 {[%clk 0:00:05.4]} 58. Bf6 {[%clk 0:00:07.1]} 58... Bc4 {[%clk
0:00:05.8]} 59. Bg7 {[%clk 0:00:07.1]} 59... Kf5 {[%clk 0:00:06.4]} 60. Bh8
{[%clk 0:00:06.8]} 60... Bd5 {[%clk 0:00:06.9]} 61. Bf6 {[%clk 0:00:07.2]} 61...
Kg4 {[%clk 0:00:07.4]} 62. Bh8 {[%clk 0:00:07.6]} 62... Bxg2 {[%clk 0:00:06.2]}
63. Kxg2 {[%clk 0:00:05.3]} 63... f3+ {[%clk 0:00:06.7]} 64. Kf1 {[%clk
0:00:05]} 64... Kh3 {[%clk 0:00:03.3]} 65. Bf6 {[%clk 0:00:03.3]} 65... Kh2
{[%clk 0:00:03.9]} 66. Bh4 {[%clk 0:00:01.8]} 66... g2+ {[%clk 0:00:04.6]} 67.
Kf2 {[%clk 0:00:02.5]} 67... g1=Q+ {[%clk 0:00:05.5]} 68. Kxf3 {[%clk
0:00:03.4]} 68... Qg2+ {[%clk 0:00:05.5]} 69. Kf4 {[%clk 0:00:03.7]} 69... Qxb2
{[%clk 0:00:06.4]} 70. Kg5 {[%clk 0:00:03.8]} 70... Qb3 {[%clk 0:00:06.1]} 71.
Kf6 {[%clk 0:00:04.7]} 71... Qd5 {[%clk 0:00:06.2]} 72. Bg5 {[%clk 0:00:05.6]}
72... Kg2 {[%clk 0:00:06.6]} 73. Bh6 {[%clk 0:00:06]} 73... Kf3 {[%clk
0:00:07.5]} 74. Bg7 {[%clk 0:00:06.3]} 74... Ke4 {[%clk 0:00:08.4]} 75. Kf7
{[%clk 0:00:07.2]} 75... Kd3 {[%clk 0:00:09.3]} 76. Bf6 {[%clk 0:00:08.1]} 76...
Kc4 {[%clk 0:00:10.2]} 77. Ke7 {[%clk 0:00:08.5]} 77... Kb3 {[%clk 0:00:11.1]}
78. Kf7 {[%clk 0:00:09.2]} 78... Kxa3 {[%clk 0:00:11.7]} 79. Ke7 {[%clk
0:00:10.1]} 79... Kb3 {[%clk 0:00:12.4]} 80. Kf7 {[%clk 0:00:11]} 80... Kxb4
{[%clk 0:00:13.1]} 81. Ke7 {[%clk 0:00:11.9]} 81... Kc4 {[%clk 0:00:14]} 82. Kf7
{[%clk 0:00:12.7]} 82... b4 {[%clk 0:00:14.9]} 0-1